bitfinex-derivatives/quotes_SOLF0:USTF0_20250823
["timestamp","ask_amount","ask_price","bid_price","bid_amount"]
[1755943423216,2.66,204.69,204.65,6.76763523]
[1755943423420,4.8872,204.69,204.66,6.76763523]
[1755943423718,7.5472,204.69,204.64,2.55]
[1755943424025,7.5472,204.69,204.65,6.77009789]
[1755943424324,7.5472,204.69,204.66,6.77009789]
[1755943424521,4.8872,204.69,204.64,2.55]
[1755943424720,2.66,204.66,204.65,6.77425722]
[1755943426520,24.4333,204.71,204.65,6.77425722]
[1755943426521,2.66,204.71,204.65,4.80271695]
[1755943426723,2.66,204.71,204.62,2.55]
[1755943426925,2.66,204.71,204.63,6.77538493]
[1755943427225,2.66,204.71,204.64,6.77538493]
[1755943427418,2.66,204.71,204.62,2.55]
[1755943427622,4.8873,204.69,204.63,6.7759334]
[1755943427923,119.86,204.72,204.64,6.7759334]
[1755943428128,2.66,204.67,204.62,2.55]
[1755943428320,2.66,204.67,204.63,9.32726824]
[1755943428519,119.86,204.72,204.59,4.8894]
[1755943428520,6.15707119,204.7,204.59,2.55]
[1755943428725,2.66,204.69,204.6,11.04646875]
[1755943428927,2.66,204.69,204.61,6.77809145]
[1755943429226,2.66,204.69,204.62,6.77809145]
[1755943429427,4.8879,204.66,204.59,2.55]
[1755943429626,4.8879,204.66,204.6,6.78049964]
[1755943429826,7.5479,204.66,204.61,9.33049964]
[1755943430028,7.5479,204.66,204.62,6.78049964]
[1755943430228,7.5479,204.66,204.61,2.55]
[1755943430429,4.8874,204.68,204.62,9.33188472]
[1755943430630,4.8874,204.68,204.62,2.55]
[1755943434834,4.887,204.7,204.63,1.97323759]
[1755943435042,4.887,204.7,204.62,7.4386]
[1755943435233,4.887,204.7,204.63,6.77973765]
[1755943435433,4.887,204.7,204.62,7.4386]
[1755943435731,4.887,204.7,204.63,6.77966808]
[1755943435933,4.887,204.7,204.63,4.8884]
[1755943436540,4.887,204.7,204.64,6.77901032]
[1755943436834,2.66,204.69,204.65,6.77901032]
[1755943437038,119.8,204.71,204.65,4.888]
[1755943437241,119.8,204.71,204.65,7.438]
[1755943438744,119.8,204.71,204.67,2.55]
[1755943438951,119.8,204.71,204.63,2.55]
[1755943439243,119.8,204.71,204.65,2.55]
[1755943439437,119.8,204.71,204.66,6.77650247]
[1755943439638,2.66,204.73,204.69,2.55]
[1755943439945,2.66,204.72,204.66,2.55]
[1755943440245,2.66,204.72,204.67,9.32563638]
[1755943440444,2.66,204.72,204.68,6.77543855]
[1755943440742,2.66,204.72,204.62,24.4437]
[1755943440743,2.66,204.72,204.66,2.55]
[1755943440943,4.886,204.74,204.67,6.77542826]
[1755943441140,2.66,204.75,204.68,6.77542826]
[1755943441440,2.66,204.75,204.63,2.55]
[1755943441641,2.66,204.75,204.64,15.93010322]
[1755943441838,2.66,204.75,204.65,6.77520906]
[1755943442045,2.66,204.75,204.66,6.77520906]
[1755943442341,2.66,204.75,204.67,6.77520906]
[1755943442543,2.66,204.75,204.64,4.8882]
[1755943442740,2.66,204.75,204.65,6.77710995]
[1755943443042,2.66,204.75,204.66,6.77710995]
[1755943443244,2.76,204.72,204.67,6.77710995]
[1755943443546,2.76,204.7,204.68,1.97179118]
[1755943443739,2.76,204.7,204.64,4.8882]
[1755943443942,2.76,204.7,204.66,2.66]
[1755943444140,2.76,204.7,204.67,6.77604586]
[1755943444337,2.76,204.74,204.68,9.43604586]
[1755943444537,2.76,204.74,204.6,24.4455]
[1755943444538,2.76,204.74,204.61,2.66]
[1755943444738,2.76,204.74,204.62,11.04443333]
[1755943444945,2.76,204.74,204.64,2.66]
[1755943445144,4.8865,204.72,204.65,15.93233333]
[1755943445339,4.8865,204.72,204.66,6.77654903]
[1755943445541,2.76,204.71,204.67,6.77719708]
[1755943445741,2.76,204.7,204.68,6.77719708]
[1755943445944,2.76,204.7,204.66,2.66]
[1755943446139,2.76,204.7,204.67,6.77846009]
[1755943446341,2.76,204.7,204.68,6.77846009]
[1755943446540,2.76,204.73,204.66,7.5477]
[1755943446735,2.76,204.73,204.67,6.77937311]
[1755943446941,2.76,204.72,204.68,6.77915324]
[1755943447140,2.76,204.72,204.66,7.5477]
[1755943447340,2.76,204.72,204.67,6.79907022]
[1755943447535,2.76,204.72,204.68,9.45907022]
[1755943447737,2.76,204.72,204.68,2.66]
[1755943447941,2.76,204.72,204.69,6.7989275]
[1755943448148,2.76,204.72,204.68,2.66]
[1755943448348,2.76,204.72,204.69,6.79895108]
[1755943448647,2.76,204.72,204.68,2.66]
[1755943448847,2.76,204.72,204.69,6.79978874]
[1755943449048,2.76,204.72,204.68,2.66]
[1755943449250,2.76,204.72,204.69,6.79978874]
[1755943449449,2.76,204.72,204.68,2.66]
[1755943449646,4.8865,204.72,204.69,6.80091074]
[1755943449948,2.76,204.71,204.65,7.5479]
[1755943450145,2.76,204.71,204.67,2.66]
[1755943450349,2.76,204.71,204.68,6.80091073]
[1755943450652,2.76,204.72,204.62,2.66]
[1755943450944,2.76,204.72,204.63,11.07778141]
[1755943451149,2.76,204.72,204.64,6.80471309]
[1755943451348,2.76,204.72,204.65,6.80471309]
[1755943451548,2.76,204.72,204.66,6.80471309]
[1755943451748,2.76,204.72,204.64,2.66]
[1755943451951,2.76,204.72,204.65,6.80635422]
[1755943452146,2.76,204.79,204.67,2.66]
[1755943452346,2.76,204.79,204.69,2.66]
[1755943452653,0.85011787,204.78,204.7,11.07799639]
[1755943452946,126.31707119,204.83,204.72,2.66]
[1755943453153,2.76,204.82,204.74,2.66]
[1755943453349,0.84994138,204.82,204.76,2.66]
[1755943453551,2.76,204.86,204.78,2.66]
[1755943453752,4.8833,204.85,204.79,4.83128508]
[1755943453947,5.73310647,204.85,204.8,4.83128508]
[1755943454152,2.76,204.83,204.81,4.83128508]
[1755943454351,2.76,204.83,204.78,2.66]
[1755943454652,2.76,204.83,204.79,5.27647949]
[1755943454840,2.76,204.83,204.8,5.27647949]
[1755943455045,2.76,204.83,204.81,5.27647949]
[1755943455242,2.76,204.83,204.78,2.66]
[1755943455446,2.76,204.83,204.79,5.27238586]
[1755943455649,2.76,204.83,204.8,5.27238586]
[1755943455854,2.76,204.83,204.78,2.66]
[1755943456053,2.76,204.83,204.79,5.27238586]
[1755943456257,2.76,204.83,204.8,5.27238586]
[1755943456455,2.76,204.83,204.79,2.66]
[1755943457257,2.76,204.82,204.74,2.66]
[1755943457554,2.76,204.82,204.75,5.26936444]
[1755943457755,2.76,204.82,204.76,5.26936444]
[1755943458058,2.76,204.82,204.74,2.66]
[1755943458354,4.8845,204.8,204.76,2.66]
[1755943458554,7.6445,204.8,204.76,2.66]
[1755943458754,2.76,204.79,204.73,2.66]
[1755943459058,2.76,204.79,204.75,2.66]
[1755943459256,2.76,204.79,204.76,5.26768337]
[1755943459552,4.884,204.82,204.77,5.26618602]
[1755943459752,7.644,204.82,204.78,2.66]
[1755943460457,7.6444,204.81,204.78,2.66]
[1755943462058,7.6444,204.81,204.75,2.66]
[1755943462256,7.6444,204.81,204.77,2.66]
[1755943467862,4.8844,204.81,204.77,2.66]
[1755943468063,7.6446,204.8,204.73,2.66]
[1755943468362,7.6446,204.8,204.74,5.26156809]
[1755943468663,7.6446,204.8,204.73,2.66]
[1755943468863,7.6446,204.8,204.69,6.15707119]
[1755943468864,7.6446,204.8,204.76,2.66]
[1755943469164,7.6446,204.8,204.77,2.66]
[1755943469463,4.884,204.82,204.74,2.66]
[1755943469658,4.884,204.82,204.76,2.66]
[1755943470364,7.6435,204.84,204.76,7.5452]
[1755943470758,7.6435,204.84,204.77,2.66]
[1755943471764,7.6435,204.84,204.77,7.5449]
[1755943472363,7.6435,204.84,204.78,2.66]
[1755943473665,2.68,204.84,204.7,2.59]
[1755943473860,2.68,204.84,204.72,2.59]
[1755943474064,2.68,204.84,204.73,5.25863584]
[1755943474260,2.68,204.84,204.74,7.84863584]
[1755943474464,2.68,204.84,204.74,2.59]
[1755943475060,4.8841,204.82,204.74,7.4757]
[1755943475364,2.68,204.82,204.74,7.4757]
[1755943476571,4.8843,204.81,204.75,5.25952105]
[1755943476861,2.68,204.8,204.76,7.84952105]
[1755943477164,2.68,204.79,204.76,2.59]
[1755943477355,2.68,204.79,204.77,5.26812654]
[1755943477554,2.68,204.79,204.76,2.59]
[1755943477767,2.68,204.79,204.77,5.26831417]
[1755943477963,2.68,204.79,204.76,2.59]
[1755943478162,2.68,204.79,204.77,5.26879994]
[1755943478461,2.68,204.79,204.76,2.59]
[1755943478660,2.68,204.79,204.77,5.2704154]
[1755943478858,2.68,204.79,204.76,2.59]
[1755943479066,2.68,204.79,204.77,5.27062503]
[1755943479261,2.68,204.79,204.76,2.59]
[1755943479461,2.68,204.79,204.77,5.27252818]
[1755943479659,2.68,204.79,204.76,2.59]
[1755943479860,2.68,204.79,204.77,5.27277118]
[1755943480059,2.68,204.79,204.76,2.59]
[1755943480262,2.68,204.79,204.77,5.27204216]
[1755943480461,2.68,204.79,204.76,2.59]
[1755943480660,2.68,204.79,204.77,5.27341634]
[1755943480869,2.68,204.79,204.76,2.59]
[1755943481168,2.68,204.79,204.77,5.27341634]
[1755943481365,2.68,204.79,204.76,2.59]
[1755943481562,2.68,204.79,204.77,5.27481511]
[1755943481765,4.8846,204.8,204.78,5.27481511]
[1755943481965,7.5646,204.8,204.77,2.59]
[1755943482169,7.5646,204.8,204.78,5.27481511]
[1755943482373,7.5646,204.8,204.77,2.59]
[1755943482568,7.5646,204.8,204.78,5.27625257]
[1755943482770,7.5646,204.8,204.77,2.59]
[1755943482970,7.5646,204.8,204.78,5.27608346]
[1755943483160,7.5646,204.8,204.77,2.59]
[1755943483366,7.5646,204.8,204.78,5.27770608]
[1755943483565,7.5646,204.8,204.77,2.59]
[1755943483767,7.5646,204.8,204.78,5.27787524]
[1755943483968,7.5646,204.8,204.77,2.59]
[1755943484169,7.5646,204.8,204.78,5.27787532]
[1755943484468,7.5646,204.8,204.77,2.59]
[1755943484659,7.5646,204.8,204.78,5.27964091]
[1755943484860,7.5646,204.8,204.79,5.27987862]
[1755943485565,7.5646,204.8,204.74,7.4757]
[1755943485766,7.5646,204.8,204.75,7.23260328]
[1755943486064,7.5646,204.8,204.76,7.87044711]
[1755943486264,7.5646,204.8,204.77,5.28044711]
[1755943486459,7.5646,204.8,204.78,5.28044711]
[1755943486660,7.5646,204.8,204.79,5.28044711]
[1755943490462,2.68,204.75,204.66,110.36669404]
[1755943490669,2.68,204.75,204.68,2.59]
[1755943490868,2.68,204.75,204.69,11.50908164]
[1755943491069,2.68,204.74,204.7,9.83423533]
[1755943491269,7.566,204.74,204.71,7.24576645]
[1755943491566,2.68,204.74,204.72,7.24688254]
[1755943491775,2.68,204.74,204.71,2.59]
[1755943491776,2.68,204.74,204.73,5.29045559]
[1755943493372,2.68,204.74,204.73,7.24793577]
[1755943493574,4.8855,204.76,204.73,7.24793577]
[1755943493873,4.8855,204.76,204.74,1.95753577]
[1755943493874,2.68,204.75,204.74,1.95753577]
[1755943494071,2.68,204.75,204.58,2.59]
[1755943494277,2.68,204.71,204.6,2.59]
[1755943494578,2.68,204.67,204.61,6.23275555]
[1755943494773,2.68,204.66,204.62,1.9593389]
[1755943495075,2.68,204.64,204.63,1.95943368]
[1755943495579,2.68,204.64,204.56,2.59]
[1755943495779,4.8888,204.62,204.57,4.27272916]
[1755943496077,2.68,204.6,204.56,2.59]
[1755943496277,2.68,204.6,204.57,4.27054294]
[1755943496475,2.68,204.61,204.51,2.59]
[1755943496679,24.4383,204.67,204.51,2.59]
[1755943496680,2.68,204.57,204.51,2.59]
[1755943496978,2.68,204.56,204.52,4.27512022]
[1755943497182,2.68,204.55,204.51,2.59]
[1755943499777,331.14,204.66,204.54,4.8906]
[1755943499979,331.14,204.66,204.55,2.59]
[1755943500480,2.68,204.63,204.55,2.59]
[1755943505387,2.76,204.62,204.52,2.63]
[1755943505594,8.91707119,204.6,204.52,2.63]
[1755943505991,8.91707119,204.6,204.53,5.07230363]
[1755943506194,13.80627119,204.6,204.52,2.63]
[1755943506391,13.80627119,204.6,204.53,5.06998448]
[1755943506592,13.80627119,204.6,204.54,5.07002156]
[1755943506892,13.80627119,204.6,204.52,2.63]
[1755943507094,8.91707119,204.6,204.53,5.07002156]
[1755943507293,8.91707119,204.6,204.54,5.07002156]
[1755943507486,8.91707119,204.6,204.52,2.63]
[1755943507689,8.91707119,204.6,204.53,5.06858022]
[1755943507884,8.91707119,204.6,204.54,5.06858022]
[1755943508086,6.15707119,204.6,204.55,5.06674989]
[1755943508291,2.76,204.62,204.56,5.06522849]
[1755943508494,6.15707119,204.61,204.53,2.63]
[1755943508695,2.76,204.6,204.54,5.06657959]
[1755943508892,2.76,204.6,204.53,2.63]
[1755943509093,2.76,204.6,204.54,5.06675481]
[1755943509288,2.76,204.6,204.53,2.63]
[1755943509594,2.76,204.6,204.54,5.06325262]
[1755943509796,2.76,204.6,204.41,4.0477472]
[1755943509797,6.15707119,204.57,204.49,2.63]
[1755943510097,2.76,204.56,204.5,5.06317665]
[1755943510296,2.76,204.55,204.51,5.06317665]
[1755943510501,2.76,204.55,204.49,2.63]
[1755943510688,4.8903,204.56,204.5,5.05993826]
[1755943510892,2.76,204.54,204.51,5.05993826]
[1755943511089,2.76,204.54,204.46,2.63]
[1755943511399,2.76,204.54,204.47,5.0579723]
[1755943511596,2.76,204.54,204.49,2.63]
[1755943511789,2.76,204.59,204.5,7.6879723]
[1755943511990,2.76,204.59,204.51,5.0579723]
[1755943512298,2.76,204.59,204.53,2.63]
[1755943512497,2.76,204.59,204.54,5.05342425]
[1755943512799,2.76,204.59,204.53,2.63]
[1755943512994,6.15707119,204.61,204.54,5.05297697]
[1755943513199,6.15707119,204.61,204.55,5.05297697]
[1755943513399,6.15707119,204.61,204.53,2.63]
[1755943513599,2.76,204.6,204.54,5.05234915]
[1755943513897,2.76,204.6,204.55,5.05208114]
[1755943514100,2.76,204.6,204.53,2.63]
[1755943514299,2.76,204.6,204.54,5.05164291]
[1755943514494,6.15707119,204.61,204.55,5.05164291]
[1755943514701,8.91707119,204.61,204.53,2.63]
[1755943514903,8.91707119,204.61,204.54,5.05231617]
[1755943515197,8.91707119,204.61,204.46,24.4628]
[1755943515198,2.76,204.56,204.49,2.63]
[1755943515401,2.76,204.56,204.5,5.05398705]
[1755943515603,2.76,204.55,204.51,5.05398705]
[1755943515801,2.76,204.55,204.52,5.05398705]
[1755943516100,2.76,204.55,204.53,5.05398705]
[1755943516297,2.76,204.55,204.49,2.63]
[1755943516500,2.76,204.55,204.5,7.6835905]
[1755943516699,2.76,204.55,204.5,2.63]
[1755943517299,8.91707119,204.57,204.5,2.63]
[1755943518402,4.8903,204.56,204.5,2.63]
[1755943518600,2.76,204.55,204.47,2.63]
[1755943518798,2.76,204.55,204.48,5.05629828]
[1755943519000,2.76,204.55,204.47,2.63]
[1755943519202,2.76,204.55,204.48,5.05583493]
[1755943519509,7.6505,204.55,204.47,2.63]
[1755943519805,7.6505,204.55,204.48,5.05529459]
[1755943520003,7.6505,204.55,204.47,2.63]
[1755943520308,4.8899,204.57,204.49,2.63]
[1755943521600,4.8895,204.59,204.5,2.63]
[1755943521902,4.8895,204.59,204.51,5.05483913]
[1755943522200,4.8895,204.59,204.5,2.63]
[1755943522406,4.8895,204.59,204.51,5.05455808]
[1755943522605,4.8895,204.59,204.5,2.63]
[1755943522802,7.6495,204.59,204.51,5.05465511]
[1755943523004,7.6495,204.59,204.5,7.5214]
[1755943523205,2.76,204.58,204.51,5.05538054]
[1755943523506,2.76,204.58,204.5,7.5214]
[1755943523707,2.76,204.58,204.51,5.0563348]
[1755943523910,2.76,204.58,204.5,7.5214]
[1755943524098,2.76,204.58,204.51,5.0563348]
[1755943524301,2.76,204.58,204.5,7.5214]
[1755943524501,2.76,204.58,204.51,5.05719932]
[1755943524802,2.76,204.58,204.5,7.5214]
[1755943525002,2.76,204.58,204.51,5.05743109]
[1755943525298,7.649,204.61,204.52,7.68680633]
[1755943525502,7.649,204.61,204.52,2.63]
[1755943525698,2.76,204.61,204.53,5.05758302]
[1755943525898,2.76,204.61,204.52,2.63]
[1755943526104,2.76,204.61,204.54,2.63]
[1755943526706,2.76,204.61,204.55,5.05850969]
[1755943526905,2.76,204.61,204.54,2.63]
[1755943527105,2.76,204.61,204.55,5.0585067]
[1755943527411,2.76,204.61,204.54,2.63]
[1755943527611,2.76,204.61,204.55,5.06041193]
[1755943527811,2.76,204.61,204.54,2.63]
[1755943528006,2.76,204.61,204.55,5.06030577]
[1755943528209,2.76,204.61,204.54,2.63]
[1755943528404,2.76,204.61,204.55,5.06193094]
[1755943528604,2.76,204.61,204.54,2.63]
[1755943528806,6.15707119,204.58,204.5,2.63]
[1755943529008,2.76,204.57,204.51,5.06354135]
[1755943529203,2.76,204.57,204.52,5.06354135]
[1755943529412,2.76,204.56,204.53,5.06354135]
[1755943529711,2.76,204.56,204.5,2.63]
[1755943529912,2.76,204.56,204.51,5.06580311]
[1755943530111,2.76,204.56,204.52,5.06580311]
[1755943530310,2.76,204.56,204.53,5.06580311]
[1755943530510,2.76,204.56,204.51,2.63]
[1755943530810,2.76,204.56,204.52,5.06925151]
[1755943531212,2.76,204.56,204.53,5.07007613]
[1755943531414,7.65,204.57,204.51,2.63]
[1755943531711,2.76,204.56,204.52,5.07319452]
[1755943532013,2.76,204.56,204.53,5.07319452]
[1755943532214,2.76,204.56,204.54,5.07776344]
[1755943532409,4.89,204.57,204.51,2.63]
[1755943532612,2.76,204.56,204.52,5.07776344]
[1755943532806,2.76,204.55,204.53,5.07776344]
[1755943533006,2.76,204.55,204.54,5.07776344]
[1755943535610,2.76,204.55,204.48,2.83]
[1755943535611,4.8908,204.54,204.48,2.83]
[1755943535813,2.75,204.53,204.49,6.17055685]
[1755943536017,2.75,204.53,204.5,6.17055685]
[1755943536212,2.75,204.53,204.51,4.26273673]
[1755943536418,2.75,204.53,204.52,4.26273673]
[1755943538319,2.75,204.53,204.52,6.1773715]
[1755943540422,2.75,204.53,204.52,6.18035182]
[1755943540919,4.8905,204.55,204.52,6.18035182]
[1755943541120,8.90707119,204.54,204.53,6.18035182]
[1755943541319,8.90707119,204.54,204.46,2.83]
[1755943541520,8.90707119,204.54,204.47,6.1632448]
[1755943541820,8.90707119,204.54,204.48,6.1632448]
[1755943542019,2.75,204.53,204.49,6.1632448]
[1755943542221,4.8912,204.52,204.5,6.1632448]
[1755943542423,4.8912,204.52,204.51,6.1632448]
[1755943543320,7.6412,204.52,204.51,6.1632448]
[1755943544224,7.6412,204.52,204.51,1.91906372]
[1755943545421,7.6412,204.52,204.46,2.83]
[1755943545422,2.75,204.52,204.46,2.83]
[1755943545621,2.75,204.51,204.47,4.24311469]
[1755943545925,2.75,204.51,204.46,2.83]
[1755943545926,2.75,204.48,204.41,2.83]
[1755943546119,2.75,204.48,204.43,2.83]
[1755943546317,2.75,204.48,204.44,4.24400734]
[1755943546524,2.75,204.48,204.45,7.07400734]
[1755943546717,2.75,204.49,204.4,184.53390171]
[1755943546920,6.15707119,204.46,204.41,4.24481815]
[1755943547122,2.75,204.44,204.38,2.83]
[1755943547319,2.75,204.43,204.39,7.07363947]
[1755943547524,2.75,204.43,204.4,4.24363947]
[1755943547724,2.75,204.43,204.41,9.14434717]
[1755943547925,2.75,204.43,204.39,2.83]
[1755943547926,2.75,204.43,204.42,4.9007077]
[1755943548118,2.75,204.43,204.39,2.83]
[1755943548722,2.75,204.42,204.39,2.83]
[1755943549628,4.8932,204.44,204.39,2.83]
[1755943549829,2.75,204.43,204.39,2.83]
[1755943550227,2.75,204.43,204.4,2.83]
[1755943560241,8.90707119,204.42,204.35,2.83]
[1755943561541,8.90707119,204.42,204.35,7.7251]
[1755943568060,13.80067119,204.42,204.35,2.83]
[1755943569049,8.90707119,204.42,204.35,2.83]
[1755943570757,8.90707119,204.42,204.35,7.725]
[1755943571359,2.71,204.41,204.35,7.725]
[1755943574457,6.15707119,204.43,204.32,2.68]
[1755943574660,6.15707119,204.43,204.34,2.68]
[1755943575263,6.15707119,204.43,204.37,4.8945]
[1755943575464,6.15707119,204.43,204.38,2.68]
[1755943575765,6.15707119,204.43,204.4,2.68]
[1755943576064,8.86707119,204.43,204.4,2.68]
[1755943576465,6.15707119,204.43,204.4,2.68]
[1755943576666,2.71,204.42,204.4,2.68]
[1755943576860,2.71,204.42,204.35,2.68]
[1755943577774,2.71,204.41,204.35,2.68]
[1755943578066,6.15707119,204.39,204.35,2.68]
[1755943578267,2.71,204.38,204.35,2.68]
[1755943579264,6.15707119,204.39,204.33,4.8955]
[1755943579466,8.86707119,204.41,204.34,2.68]
[1755943580058,2.71,204.41,204.36,4.8948]
[1755943580264,2.71,204.41,204.37,2.68]
[1755943580667,6.15707119,204.43,204.36,4.8948]
[1755943580668,2.71,204.42,204.36,4.8948]
[1755943581973,2.71,204.42,204.33,7.5755]
[1755943582172,8.86707119,204.39,204.33,7.5755]
[1755943583770,8.86707119,204.39,204.33,2.68]
[1755943585870,2.71,204.38,204.29,2.68]
[1755943586066,2.71,204.38,204.3,6.66469317]
[1755943586267,2.71,204.38,204.31,4.79642417]
[1755943586471,2.71,204.38,204.29,2.68]
[1755943586664,2.71,204.38,204.3,6.6669333]
[1755943586863,2.71,204.38,204.31,6.6669333]
[1755943587070,2.71,204.34,204.29,2.68]
[1755943587266,2.71,204.33,204.3,4.80136089]
[1755943587468,2.71,204.33,204.3,2.68]
[1755943587664,2.71,204.32,204.23,2.68]
[1755943587863,2.71,204.32,204.21,4.08156753]
[1755943587864,2.71,204.32,204.25,2.68]
[1755943588067,2.71,204.32,204.27,2.68]
[1755943588268,2.71,204.32,204.29,2.68]
[1755943588464,6.15707119,204.35,204.3,7.47990159]
[1755943588672,2.71,204.33,204.3,2.68]
[1755943588982,6.15707119,204.35,204.28,4.8968]
[1755943589274,2.71,204.33,204.29,9.35063713]
[1755943589474,2.71,204.33,204.3,7.48068446]
[1755943589778,2.71,204.33,204.3,2.68]
[1755943590977,2.71,204.34,204.28,4.8968]
[1755943591280,2.71,204.33,204.29,6.67689918]
[1755943591470,2.71,204.33,204.3,7.4858872]
[1755943591670,2.71,204.33,204.3,2.68]
[1755943594578,2.74,204.32,204.3,2.68]
[1755943594882,2.74,204.31,204.28,2.65]
[1755943596477,8.89707119,204.31,204.21,2.65]
[1755943596775,2.74,204.3,204.23,2.65]
[1755943597175,2.74,204.3,204.18,2.65]
[1755943597377,6.15707119,204.27,204.21,4.8984]
[1755943597583,2.74,204.26,204.22,7.45726276]
[1755943597877,2.74,204.25,204.19,2.65]
[1755943598576,2.74,204.25,204.19,7.549]
[1755943598776,2.74,204.25,204.19,2.65]
[1755943598975,2.74,204.25,204.2,6.67839043]
[1755943599179,2.74,204.25,204.22,2.65]
[1755943601677,2.74,204.25,204.22,7.5481]
[1755943602577,2.74,204.25,204.23,4.8979]
[1755943604785,2.74,204.27,204.24,2.65]
[1755943604986,6.15707119,204.28,204.24,2.65]
[1755943605194,2.74,204.27,204.21,2.65]
[1755943605483,2.74,204.27,204.19,2.65]
[1755943605982,2.74,204.26,204.22,7.5481]
[1755943606283,6.15707119,204.28,204.22,4.8981]
[1755943606484,2.74,204.21,204.14,2.65]
[1755943606683,4.8984,204.22,204.1,2.65]
[1755943606684,2.74,204.17,204.1,2.65]
[1755943607582,2.74,204.17,204.12,4.9005]
[1755943607789,2.74,204.17,204.13,2.65]
[1755943608182,8.89707119,204.18,204.07,2.65]
[1755943608488,8.89707119,204.18,204.09,2.65]
[1755943609378,2.74,204.16,204.12,7.5505]
[1755943612589,2.74,204.15,204.12,2.65]
[1755943613186,6.15707119,204.18,204.12,2.65]
[1755943613387,8.89707119,204.18,204.12,2.65]
[1755943614985,8.89707119,204.18,204.12,7.5505]
[1755943615188,6.15707119,204.18,204.13,4.8767569]
[1755943615493,2.74,204.16,204.14,4.8767569]
[1755943615692,2.74,204.17,204.1,4.9011]
[1755943615989,2.74,204.17,204.07,2.65]
[1755943615990,2.74,204.12,204.11,4.87665911]
[1755943616180,2.74,204.12,204.08,2.65]
[1755943616488,2.74,204.12,204.09,2.65]
[1755943617880,2.74,204.13,204.08,4.9016]
[1755943618086,8.89707119,204.1,204.02,2.65]
[1755943618290,8.89707119,204.1,204.03,4.5542191]
[1755943618493,8.89707119,204.1,204.04,4.5542191]
[1755943618687,8.89707119,204.1,204.02,2.65]
[1755943618886,8.89707119,204.1,204.03,9.45531144]
[1755943619088,8.89707119,204.1,204.02,2.65]
[1755943619292,8.89707119,204.1,204.03,4.55330409]
[1755943619493,8.89707119,204.1,204.02,2.65]
[1755943619692,8.89707119,204.1,204.03,4.55171891]
[1755943619891,8.89707119,204.1,204.02,2.65]
[1755943620093,8.89707119,204.1,204.03,9.4553301]
[1755943620286,8.89707119,204.1,204.03,4.9028]
[1755943620487,2.74,204.05,203.96,2.65]
[1755943620692,6.15707119,204.06,204.0,4.9034]
[1755943620994,2.74,204.08,204.01,4.55719552]
[1755943621191,2.74,204.08,204.04,2.65]
[1755943622190,2.74,204.08,204.05,4.77339038]
[1755943622392,2.74,204.08,204.06,4.77339038]
[1755943622687,2.74,204.08,204.05,4.9024]
[1755943622885,6.15707119,204.1,204.06,4.77198841]
[1755943623082,2.74,204.08,204.07,4.77198841]
[1755943623285,2.78,204.09,203.98,2.78]
[1755943623482,6.15707119,204.05,203.98,2.78]
[1755943623887,2.78,204.0,203.93,2.78]